Cogmind - Beta 9.2 @@@ ROGUE MODE // 2019.11.12 @ 20:43:21 Player: Fleshy Vegetable Bird Result: Destroyed by as-29727 with Assembled Rifle Performance ------------- Evolutions (0) 0 Regions Visited (2) 400 Robots Destroyed (29) 145 Value Destroyed (231) 231 Prototype IDs (0) 0 Alien Tech Used (0) 0 Bonus (-116) -116 TOTAL SCORE: 660 Bonus ------- Friendly Fire -116 Cogmind --------- Core Integrity 0/250 Matter 268/300 Energy 250/250 System Corruption 0% Temperature Cool (0) Movement Rolling (100) Ox1 Location -10/Mines Parts ------- > --- POWER (1) -------- Ion Engine > --- PROPULSION (2) --- Wheel Compact Wheel > --- UTILITY (2) ------ Large Storage Unit Large Storage Unit > --- WEAPON (2) ------- Assault Rifle Light Assault Rifle > --- INVENTORY (16) --- Ion Engine Ion Engine Light Ion Engine Wheel Wheel Wheel Compact Wheel Large Storage Unit Improved Light Armor Plating Hacking Suite Rocket Launcher Mining Laser Mining Laser Peak State ------------ > --- POWER ------------ Ion Engine > --- PROPULSION ------- Wheel Wheel > --- UTILITY ---------- Large Storage Unit Large Storage Unit > --- WEAPON ----------- Small Laser Assault Rifle > --- INVENTORY -------- Ion Engine Ion Engine Light Ion Engine Wheel Large Storage Unit Hacking Suite Grenade Launcher Mining Laser [Rating: 8] Favorites ----------- Power Ion Engine Engine Ion Engine Propulsion Wheel Wheel Wheel Utility Large Storage Unit Storage Large Storage Unit Weapon Assault Rifle Energy Gun Small Laser Ballistic Gun Assault Rifle Launcher Grenade Launcher Special Weapon Mining Laser Build | -11 -10 -10 ------- Run | Scr Mat Min Slots Evolved . | . . . Power . | . . . Propulsion . | . . . Utility . | . . . Weapon . | . . . Parts Attached 20 | 6 8 6 Power 1 | 1 . . Engine 1 | 1 . . Core . | . . . Reactor . | . . . Propulsion 6 | 2 1 3 Treads . | . . . Leg . | . . . Wheel 6 | 2 1 3 Hover . | . . . Flight . | . . . Utility 4 | 1 3 . Device . | . . . Storage 4 | 1 3 . Processor . | . . . Hackware . | . . . Protection . | . . . Artifact . | . . . Weapon 9 | 2 4 3 Energy Gun 4 | 2 2 . Energy Cannon . | . . . Ballistic Gun 3 | . 1 2 Ballistic Cannon . | . . . Launcher 1 | . . 1 Special Weapon 1 | . 1 . Impact Weapon . | . . . Slashing Weapon . | . . . Piercing Weapon . | . . . Special Melee Weapon . | . . . Unidentified Prototypes . | . . . Parts Lost 6 | . 2 4 Power . | . . . Propulsion 3 | . 1 2 Utility . | . . . Weapon 3 | . 1 2 Highest Loss Streak 2 | . 2 1 Average Slot Usage (%) 95 | . 98 92 Engine 14 | . 14 14 Wheel 27 | . 27 27 Storage 27 | . 26 28 Energy Gun 6 | . 12 1 Ballistic Gun 13 | . 9 16 Launcher 2 | . . 4 Special Weapon 2 | . 5 . Naked Turns . | . . . Heaviest Build 42 | 12 40 42 Greatest Support 26 | 20 20 26 Greatest Overweight (x) 3 | . 1 3 Average Overweight (x) . | . . 1 Largest Inventory Capacity 16 | 6 16 16 Average Capacity 14 | 5 12 16 Most Carried 14 | 6 8 14 Average Carried 8 | 3 6 10 Final Capacity 16 | 6 16 16 Final Carried 13 | 6 8 13 Class Distribution -------------------- 100% | Mutant Dominant Class ---------------- Mutant | -10/Materials Mutant | -10/Mines Resources | -11 -10 -10 ----------- Run | Scr Mat Min Matter Collected 629 | 260 101 268 Remotely . | . . . Salvage Created 653 | 145 239 269 Parts 54 | 10 27 17 Haulers Intercepted 1 | . 1 . Recyclers Shooed . | . . . Parts Field Recycled . | . . . Retrieved Matter . | . . . Parts Self-Destructed . | . . . Prevented . | . . . Kills | -11 -10 -10 ------- Run | Scr Mat Min Combat Hostiles Destroyed 17 | . 5 12 Guns 11 | . 5 6 AOE 6 | . . 6 Classes Destroyed 8 | 2 5 1 Tunneler 4 | 3 1 . Hauler 1 | . 1 . Recycler 4 | 1 . 3 Operator 2 | . 1 1 Watcher 1 | . 1 . Swarmer 8 | . 3 5 Grunt 2 | . 2 . Assembled 7 | . . 7 Best Kill Streak 7 | 4 3 7 Combat Bots Only 5 | . 3 5 Max Kills in Single Turn 2 | 1 1 2 Gunslinging . | . . . Exploded 2 | . . 2 Melee . | . . . Uniques/NPCs Destroyed . | . . . Combat | -11 -10 -10 -------- Run | Scr Mat Min Damage Taken 893 | . 347 546 Core 263 | . 110 153 Absorbed by Shields . | . . . Core Remaining (%) 100 | 100 . . Volleys Fired 110 | 8 47 55 Largest 2 | 2 2 2 Hottest 100 | 90 100 50 Shots Fired 147 | 16 64 67 Gun 116 | 16 43 57 Cannon . | . . . Launcher 10 | . . 10 Special 21 | . 21 . Kinetic 64 | . 7 57 Thermal 73 | 16 57 . Explosive 10 | . . 10 Electromagnetic . | . . . Robot Hit Streak 7 | 3 4 7 Robot Miss Streak 7 | 2 7 3 Penetration Max . | . . . Secondary Targets 2 | . 2 . Max Gunslinging Chain 1 | . 1 . Shots Hit Robots 64 | 10 19 35 Core Hits 47 | 5 13 29 Critical Hits . | . . . Critical Kills . | . . . Critical Parts Destroyed . | . . . Melee Attacks . | . . . Impact . | . . . Slashing . | . . . Piercing . | . . . Sneak Attacks . | . . . Combat Hostiles . | . . . Follow-up Attacks . | . . . Damage Inflicted 1303 | 103 297 903 Guns 746 | 103 273 370 Cannons . | . . . Explosions 533 | . . 533 Melee . | . . . Ramming . | . . . Kinetic 420 | . 50 370 Thermal 350 | 103 247 . Explosive 533 | . . 533 Electromagnetic . | . . . Impact . | . . . Slashing . | . . . Piercing . | . . . Highest Corruption . | . . . Average Corruption . | . . . Corruption Purged . | . . . Overload Shots . | . . . Overflow Damage 34 | . . 34 Projectiles . | . . . Explosions 34 | . . 34 Melee . | . . . Knockbacks . | . . . Impact . | . . . Kinetic . | . . . Secondary . | . . . Self-Inflicted Damage 136 | . . 136 Shots 4 | . . 4 Rammed . | . . . Targets Rammed . | . . . Kicked . | . . . Crushed . | . . . Highest Temperature 191 | 120 191 . Average Temperature 61 | 49 63 . Received Heat Transfer 81 | . 81 . Siege Activations . | . . . Robots Corrupted . | . . . Combat Hostiles . | . . . Parts Fried . | . . . Impact Corruptions . | . . . Robots Melted . | . . . Combat Hostiles . | . . . Parts Melted 2 | 1 1 . Heat Transferred 858 | 273 585 . Parts Sabotaged . | . . . Parts Stolen . | . . . Parts Stripped . | . . . Power Chain Reactions . | . . . Missiles Intercepted . | . . . Alert | -11 -10 -10 ------- Run | Scr Mat Min Peak Influence 165 | 20 165 137 Average Influence 62 | 7 78 54 Maximum Alert Level . | . . . Low Security (%) 100 | 100 100 100 Level 1 . | . . . Level 2 . | . . . Level 3 . | . . . Level 4 . | . . . Level 5 . | . . . High Security . | . . . Max Security . | . . . Squads Dispatched . | . . . Investigation . | . . . Extermination . | . . . Reinforcement . | . . . Assault . | . . . Garrison . | . . . Intercept . | . . . Construction Impeded . | . . . Haulers Reinforced . | . . . Stealth | -11 -10 -10 --------- Run | Scr Mat Min Distress Signals 2 | . 1 1 Communications Jammed . | . . . Distress Signals . | . . . Times Spotted 22 | . 7 15 Peak Tracking Total 4 | . 3 4 Tactical Retreats 2 | . . 2 Traps | -11 -10 -10 ------- Run | Scr Mat Min Traps Triggered . | . . . Indirectly . | . . . Trap Hack Attempts . | . . . Triggered . | . . . Disarmed . | . . . Reprogrammed . | . . . Reused . | . . . Traps Extracted . | . . . Installed . | . . . Triggered . | . . . Machines | -11 -10 -10 ---------- Run | Scr Mat Min Machines Disabled . | . . . Max in Single Turn . | . . . Machines Sabotaged . | . . . Garrisons Compromised . | . . . Overloaded Fab Kills . | . . . Fab Network Shutdowns . | . . . Hacking | -11 -10 -10 --------- Run | Scr Mat Min Machines Accessed 9 | . 8 1 Terminals 9 | . 8 1 Fabricators . | . . . Repair Stations . | . . . Recycling Units . | . . . Scanalyzers . | . . . Garrison Access . | . . . Total Hacks 27 | . 24 3 Successful 17 | . 16 1 Failed 10 | . 8 2 Catastrophic 1 | . 1 . Database Lockouts . | . . . Manual 23 | . 21 2 Terminals 27 | . 24 3 Fabricators . | . . . Repair Stations . | . . . Recycling Units . | . . . Scanalyzers . | . . . Garrison Access . | . . . Terminal Hacks 5 | . 4 1 Part Schematic 1 | . . 1 Branch Access Points 1 | . 1 . Terminal Index 1 | . 1 . Scanalyzer Index 1 | . 1 . Zone Layout 1 | . 1 . Fabricator Hacks . | . . . Repair Station Hacks . | . . . Recycling Unit Hacks . | . . . Scanalyzer . | . . . Garrison Access Hacks . | . . . Unauthorized Hacks 30 | . 30 . Terminals 12 | . 12 . Track 3 | . 3 . Assimilate 2 | . 2 . Botnet 6 | . 6 . Operators 1 | . 1 . Fabricators . | . . . Repair Stations . | . . . Recycling Units . | . . . Scanalyzers . | . . . Garrison Access . | . . . Data Cores Recovered . | . . . Used . | . . . Hacking Detections 8 | . 7 1 Full Trace Events . | . . . Feedback Events . | . . . Feedback Blocked . | . . . Robot Schematics Acquired . | . . . Robots Built . | . . . Matter . | . . . Time . | . . . Total Robot Build Rating . | . . . Part Schematics Acquired 1 | . . 1 Parts Built . | . . . Matter . | . . . Time . | . . . Total Part Build Rating . | . . . Parts Repaired . | . . . Time . | . . . Parts Recycled . | . . . Recycled Matter . | . . . Retrieved Matter . | . . . Retrieved Components . | . . . Parts Scanalyzed . | . . . Part Schematics Acquired . | . . . Parts Damaged . | . . . Bothacking | -11 -10 -10 ------------ Run | Scr Mat Min Used RIF Installer . | . . . Robots Hacked . | . . . Non-combat . | . . . Combat . | . . . Robot Hacks Applied . | . . . Relay Couplers Released . | . . . Robots Rewired . | . . . Allies Hacked . | . . . Hacks Repelled . | . . . Allies | -11 -10 -10 -------- Run | Scr Mat Min Total Allies 2 | . 2 . Largest Group 2 | . 2 1 Highest-Rated Group 20 | . 20 10 Highest-Rated Ally 10 | . 10 10 Total Orders 2 | . . 2 GOTO 1 | . . 1 FOLLOW 1 | . . 1 Ally Attacks . | . . . Total Damage . | . . . Kills . | . . . Allies Corrupted . | . . . Allies Melted . | . . . Intel | -11 -10 -10 ------- Run | Scr Mat Min Robot Analysis Total . | . . . Derelict Logs Recovered 1 | . . 1 Drone Launches . | . . . Drone Recoveries . | . . . Exploration | -11 -10 -10 ------------- Run | Scr Mat Min Turns Passed 1618 | 86 670 862 Spaces Moved 1236 | 59 444 733 Core 9 | 9 . . Treads . | . . . Legs . | . . . Wheels 1227 | 50 444 733 Hover . | . . . Flight . | . . . Fastest Speed 50 | 50 80 90 Average Speed 90 | 75 85 94 Slowest Speed 110 | 80 90 110 Overloaded Moves . | . . . Propulsion Burnouts . | . . . Robots Hopped . | . . . Cave-ins Triggered 1 | . 1 . Exploration Rate (%) 62 | 4 86 97 Regions Visited 2 Branch Regions 1 Pre-discovered Areas . | . . . Known Exits Taken 1 | . 1 . Unknown Exits Taken 1 | 1 . . Scrap Searched 2 | . . 2 Spaces Dug 20 | . 20 . Terrain Destroyed 98 | . 20 78 Melee . | . . . Projectile 20 | . 20 . AOE 78 | . . 78 Actions | -11 -10 -10 --------- Run | Scr Mat Min Total 1547 | 84 628 835 Wait 147 | . 117 30 Move 1234 | 58 443 733 Hop . | . . . Pick Up 31 | 12 9 10 Fast Attach . | . . . Attach 13 | 6 3 4 Detach . | . . . Swap 7 | . 5 2 Drop 5 | . 4 1 Fire 110 | 8 47 55 Melee . | . . . Ram . | . . . Kick . | . . . Crush . | . . . Escape Stasis . | . . . Rewire . | . . . Trap . | . . . Miscellaneous . | . . . Route ------- -11/Scrapyard -10/Materials (discovered 3 exits: [*Mat x2] / *Min) -10/Mines (discovered 2 exits: [*Mat x2]) History --------- Turn | Location | Event 6 | -11/Scrapyard | Discovered new exit (range 16) 87 | -11/Scrapyard | Entered Materials 311 | -10/Materials | Discovered new exit (range 8) 319 | -10/Materials | Build established: Mutant 363 | -10/Materials | Identified exit to Mines 376 | -10/Materials | Discovered new exit (range 10) 577 | -10/Materials | Crushed by falling debris 757 | -10/Materials | Entered Mines 757 | -10/Mines | Accompanied by 1 ally 825 | -10/Mines | Core integrity fell below 50% 893 | -10/Mines | Received a Rocket Launcher from a helpful Derelict 982 | -10/Mines | Assembled infested the area 987 | -10/Mines | Assisted by a Guerilla fighting off Assembled 1055 | -10/Mines | Core integrity fell below 20% 1172 | -10/Mines | Discovered new exit (range 7) 1193 | -10/Mines | Discovered new exit (range 6) 1619 | -10/Mines | Destroyed by as-29727 with Assembled Rifle Last Messages --------------- 01355_ U-05 Engineer lays Concrete. 01359_ Acquired 10 matter. 01361_ U-05 Engineer lays Concrete. 01361_ Acquired 2 matter. 01391_ K-01 Serf collects debris. 01407_ U-05 Engineer builds a Wall. 01435_ Wheel destroyed. 01437_ as-50430 destroyed. 01442_ Acquired 14 matter. 01445_ Extracted 22 matter. 01513_ Connecting with Terminal... >>Schematic(Hcp. Storage Unit) Downloading schematic... Hcp. Storage Unit Rating: 1 Schematic downloaded. 01518_ U-05 Engineer builds a Wall. 01558_ Acquired Wheel. 01602_ U-05 Engineer builds a Wall. 01607_ U-05 Engineer lays Concrete. Map ----- +----------------------------------------------------+ | ?????????????????????????????????????? | | ?????????????????????????????????????? | | ?????????????????????????????????????? | | ???????????####??????????????????????? | | ??????????## ##?????????????????????? | | ??????????# #?????????????????????? | | ??????????# #?????????????????????? | | ??????????# ##?????????????????????? | | ?????????## ##??????????????????????? | | ????????## #??????????????????????## | | ????##### ##?????????############" | | ???## #?????????# | | ??## #????####?# # | | ??# ##??## ### ######## ## | | ??# #### #??????# ## | | ??# % ## #####??????# # | | ??# ##??????????## | | ??## =* ##????????????# | | ???## !%! ## #?????????????##%# | | ????## ## ### ##????####??????# # | | ????## #### #?####????## ##?????# # | | ??### #??#% #?????????# #?????# # | | ??# ##?# #?????????# ##????# | | ??## #?# #??????????# ######## | | ???## #?# #??????????## ##?? | | ????### #?# @#???????????# #?? | | ??????####?# #???????????# #?? | | ???????????# #???#####??## #### | | ??????????## a##### #### #### | | ??????????# ## ### | | ?????????## !% ! ## = | | ?????##### !%| % | | ?????# ! #### =* ! | | ?????# * ############ = | | ?????## ###?# ##????##=! | | ??????## *# ## #????#*%== # | | ???????## ## #????#!*[ # | | ????????#### #????#!%##### # | | ?????????# ## #????#%%### # | | ?????????## # #????# ######## | | ??????????### #????#! =*! ##? | | ??????????## ##????#% %[%! #?? | | ???###???## * # ##?????######= #?? | | ??## #### %## *# #??????????# #?? | | ??# ## # # ##??????????# ### | | ??# # # ##?????####??# | | ??# ####### ######## #### ### | | ??# ###?????# %= ! #?? | | ??# ##????# " ]% =* #?? | | ??## ##?????##############=%*######?? | +----------------------------------------------------+ Best States ------------- Heat Dissipation 25 Energy Generation 10 Energy Capacity 250 Matter Stores 300 Matter Capacity 300 Sight Range 16 Terrain Scan Density 10 Evasion (%) 44 Item Schematics ----------------- Hcp. Storage Unit | -10/Mines | Hacked Robot Schematics ------------------ None Fabricated ------------ Nothing Alien Tech Used ----------------- None Achievements -------------- None Challenges ------------ None Game ------ Seed BombDimensionalCorpse Manual? 0 Play Time 00:12:35 Cumulative 166.4 hours Start 2019.11.12 @ 20:32:22 End 2019.11.12 @ 20:43:21 Sessions 1 Manual Loads 0 Difficulty Rogue Special Mode None Game No. 241 Rogue 241 Adventurer 0 Explorer 0 Win Type - Total 1 Types 1/0/0/0/0/0/0 Lore% 48 Gallery% 67 Achievement% 42 Wizard Run 0 Options --------- ASCII 0 Keyboard 0 Movement Numpad Keybinds 0 Fullscreen 1 Font 16/Terminus Map View 75x55 Tactical HUD 1 Map Filters NONE Filters NONE Steam 1 RUN: 6d241e6e-5120-4010-ab45-47534c5b8fa5